[Event "*** Titled Tuesday Blitz"]
[Site "Chess.com"]
[Date "2020.12.01"]
[Round "1"]
[White "MaxLeto"]
[Black "tigra"]
[Result "0-1"]
[WhiteElo "2391"]
[BlackElo "2786"]
[TimeControl "180+1"]
[EndTime "10:06:00 PST"]
[Termination "tigra won by resignation"]

1. g4 {[%clk 0:02:47.1]} 1... d5 {[%clk 0:02:39.2]} 2. Bg2 {[%clk 0:02:44.1]}
2... c6 {[%clk 0:02:34.3]} 3. g5 {[%clk 0:02:37.4]} 3... e5 {[%clk 0:02:29.6]}
4. h4 {[%clk 0:02:36.4]} 4... Bg4 {[%clk 0:02:22.5]} 5. d4 {[%clk 0:02:36.2]}
5... Nd7 {[%clk 0:02:21.3]} 6. dxe5 {[%clk 0:02:31.4]} 6... Nxe5 {[%clk
0:02:21.1]} 7. Qd4 {[%clk 0:02:22.3]} 7... Qc7 {[%clk 0:02:14.4]} 8. Bf4 {[%clk
0:02:16.7]} 8... Bd6 {[%clk 0:02:13.6]} 9. Nc3 {[%clk 0:01:42.6]} 9... f5 {[%clk
0:02:11.7]} 10. h5 {[%clk 0:01:13.8]} 10... O-O-O {[%clk 0:02:02.8]} 11. f3
{[%clk 0:00:53.8]} 11... Nxf3+ {[%clk 0:01:57.1]} 12. exf3 {[%clk 0:00:53]}
12... Bxf4 {[%clk 0:01:58]} 13. fxg4 {[%clk 0:00:50.6]} 13... Re8+ {[%clk
0:01:55.2]} 14. Nge2 {[%clk 0:00:49.7]} 14... Be3 {[%clk 0:01:54.4]} 15. Qa4
{[%clk 0:00:41.5]} 15... Ne7 {[%clk 0:01:39.8]} 16. Rh3 {[%clk 0:00:17.8]} 16...
Qe5 {[%clk 0:01:39.2]} 17. Rd1 {[%clk 0:00:04.3]} 17... Rhf8 {[%clk 0:01:38.1]}
18. Rd3 {[%clk 0:00:04.1]} 18... f4 {[%clk 0:01:25.2]} 19. Kd1 {[%clk
0:00:03.5]} 19... Kb8 {[%clk 0:01:18.1]} 20. Rf3 {[%clk 0:00:03.1]} 20... Qxg5
{[%clk 0:01:12.9]} 21. Nb1 {[%clk 0:00:02.7]} 21... Nc8 {[%clk 0:01:07.9]} 22.
Bh3 {[%clk 0:00:02.6]} 22... Nb6 {[%clk 0:01:07.2]} 23. Qa3 {[%clk 0:00:02.2]}
23... Nc4 {[%clk 0:01:05.9]} 24. b3 {[%clk 0:00:02.7]} 24... Nxa3 {[%clk
0:01:05]} 0-1

[Event "*** Titled Tuesday Blitz"]
[Site "Chess.com"]
[Date "2020.12.01"]
[Round "1"]
[White "PawnEatingZombie"]
[Black "SaqoChess_Twitch"]
[Result "0-1"]
[WhiteElo "2158"]
[BlackElo "2513"]
[TimeControl "180+1"]
[EndTime "10:06:12 PST"]
[Termination "SaqoChess_Twitch won on time"]

1. d4 {[%clk 0:03:00]} 1... d5 {[%clk 0:02:58.9]} 2. c4 {[%clk 0:02:59.4]} 2...
e6 {[%clk 0:02:55.9]} 3. Nc3 {[%clk 0:02:59.7]} 3... Nf6 {[%clk 0:02:54.8]} 4.
cxd5 {[%clk 0:02:59.6]} 4... exd5 {[%clk 0:02:55.1]} 5. Bg5 {[%clk 0:02:59.6]}
5... c6 {[%clk 0:02:55]} 6. e3 {[%clk 0:02:56.7]} 6... Qb6 {[%clk 0:02:53.4]} 7.
Qd2 {[%clk 0:02:48.3]} 7... Ne4 {[%clk 0:02:52.5]} 8. Nxe4 {[%clk 0:02:45.9]}
8... dxe4 {[%clk 0:02:52.6]} 9. Ne2 {[%clk 0:02:45.5]} 9... Bf5 {[%clk
0:02:50.5]} 10. Nc3 {[%clk 0:02:42.2]} 10... Nd7 {[%clk 0:02:49.8]} 11. Bc4
{[%clk 0:02:31.7]} 11... Bd6 {[%clk 0:02:49.6]} 12. O-O {[%clk 0:02:25.9]} 12...
O-O {[%clk 0:02:49.4]} 13. f3 {[%clk 0:02:22.6]} 13... h6 {[%clk 0:02:48]} 14.
Bh4 {[%clk 0:02:19.9]} 14... exf3 {[%clk 0:02:47.1]} 15. Rxf3 {[%clk 0:02:17.5]}
15... Be6 {[%clk 0:02:47]} 16. Bd3 {[%clk 0:02:15.4]} 16... Qc7 {[%clk
0:02:44.5]} 17. Bg3 {[%clk 0:02:12.8]} 17... Bxg3 {[%clk 0:02:43.7]} 18. Rxg3
{[%clk 0:02:12.6]} 18... Kh8 {[%clk 0:02:42]} 19. Rf1 {[%clk 0:02:11.5]} 19...
Nf6 {[%clk 0:02:37.8]} 20. Kh1 {[%clk 0:02:00.3]} 20... Nh7 {[%clk 0:02:36.8]}
21. e4 {[%clk 0:01:58.6]} 21... Rad8 {[%clk 0:02:32.8]} 22. Qf2 {[%clk
0:01:48.3]} 22... Qd6 {[%clk 0:02:28.4]} 23. Ne2 {[%clk 0:01:39.6]} 23... Bxa2
{[%clk 0:02:25.7]} 24. e5 {[%clk 0:01:37.6]} 24... Qd7 {[%clk 0:02:23.8]} 25. h3
{[%clk 0:00:58.3]} 25... Bd5 {[%clk 0:02:19.7]} 26. Rg4 {[%clk 0:00:58]} 26...
f5 {[%clk 0:02:18.4]} 27. Rf4 {[%clk 0:00:51]} 27... Be6 {[%clk 0:02:17.2]} 28.
Ng3 {[%clk 0:00:45.6]} 28... g5 {[%clk 0:02:17.2]} 29. Rxf5 {[%clk 0:00:44]}
29... Bxf5 {[%clk 0:02:16.6]} 30. Nxf5 {[%clk 0:00:44]} 30... Rxf5 {[%clk
0:02:15]} 31. Bxf5 {[%clk 0:00:36.3]} 31... Qxd4 {[%clk 0:02:14.9]} 32. Qc2
{[%clk 0:00:33.3]} 32... Nf8 {[%clk 0:02:11.5]} 33. e6 {[%clk 0:00:33.7]} 33...
Qf6 {[%clk 0:02:10.7]} 34. Re1 {[%clk 0:00:30.9]} 34... Re8 {[%clk 0:02:08.2]}
35. Qe4 {[%clk 0:00:23.8]} 35... Re7 {[%clk 0:02:08.4]} 36. Bg4 {[%clk
0:00:20.9]} 36... Kg7 {[%clk 0:02:08.8]} 37. Kg1 {[%clk 0:00:20.1]} 37... Ng6
{[%clk 0:02:08.8]} 38. Rf1 {[%clk 0:00:19.9]} 38... Qxb2 {[%clk 0:02:04.4]} 39.
Rf7+ {[%clk 0:00:16.6]} 39... Rxf7 {[%clk 0:02:03.5]} 40. exf7 {[%clk
0:00:16.8]} 40... Kxf7 {[%clk 0:02:04.4]} 41. Qe6+ {[%clk 0:00:16.8]} 41... Kg7
{[%clk 0:02:04.6]} 42. Qd7+ {[%clk 0:00:16.7]} 42... Kf8 {[%clk 0:02:04.5]} 43.
Be6 {[%clk 0:00:12.4]} 43... Qc1+ {[%clk 0:02:00.5]} 44. Kh2 {[%clk 0:00:11.7]}
44... Qf4+ {[%clk 0:02:01.1]} 45. Kh1 {[%clk 0:00:12]} 45... Qf6 {[%clk
0:01:59.2]} 46. Bb3 {[%clk 0:00:06.2]} 46... Nh4 {[%clk 0:01:58.1]} 47. Qc8+
{[%clk 0:00:04.5]} 47... Ke7 {[%clk 0:01:57.3]} 48. Qc7+ {[%clk 0:00:03.9]}
48... Ke8 {[%clk 0:01:56.5]} 49. Qc8+ {[%clk 0:00:03.3]} 49... Qd8 {[%clk
0:01:55.1]} 50. Bf7+ {[%clk 0:00:02.2]} 50... Ke7 {[%clk 0:01:54.8]} 51. Qe6+
{[%clk 0:00:02]} 51... Kf8 {[%clk 0:01:55]} 0-1

[Event "*** Titled Tuesday Blitz"]
[Site "Chess.com"]
[Date "2020.12.01"]
[Round "1"]
[White "Stosk"]
[Black "FMKonstantin_Twitch"]
[Result "1-0"]
[WhiteElo "2353"]
[BlackElo "2624"]
[TimeControl "180+1"]
[EndTime "10:06:20 PST"]
[Termination "Stosk won by resignation"]

1. d4 {[%clk 0:03:00.8]} 1... d5 {[%clk 0:02:55.7]} 2. c4 {[%clk 0:03:00.4]}
2... e6 {[%clk 0:02:56.1]} 3. Nc3 {[%clk 0:03:00.1]} 3... Nf6 {[%clk 0:02:55]}
4. cxd5 {[%clk 0:03:00.2]} 4... exd5 {[%clk 0:02:55.2]} 5. Bg5 {[%clk
0:02:59.7]} 5... c6 {[%clk 0:02:55.3]} 6. e3 {[%clk 0:02:57.5]} 6... Be7 {[%clk
0:02:55.8]} 7. Bd3 {[%clk 0:02:56.8]} 7... O-O {[%clk 0:02:56.4]} 8. Qc2 {[%clk
0:02:53.3]} 8... Nbd7 {[%clk 0:02:55.1]} 9. Nge2 {[%clk 0:02:45.5]} 9... Re8
{[%clk 0:02:47.6]} 10. f3 {[%clk 0:02:22.3]} 10... Nf8 {[%clk 0:02:28.8]} 11.
O-O {[%clk 0:02:11.8]} 11... Be6 {[%clk 0:02:12.9]} 12. e4 {[%clk 0:01:58.3]}
12... c5 {[%clk 0:02:03.5]} 13. e5 {[%clk 0:01:31.1]} 13... N6d7 {[%clk
0:01:47.3]} 14. Bxe7 {[%clk 0:01:23.5]} 14... Qxe7 {[%clk 0:01:48.2]} 15. Nb5
{[%clk 0:01:11.3]} 15... c4 {[%clk 0:01:41.1]} 16. Bf5 {[%clk 0:01:11]} 16... g6
{[%clk 0:01:41.5]} 17. Bxe6 {[%clk 0:01:08.5]} 17... fxe6 {[%clk 0:01:42.4]} 18.
Nc7 {[%clk 0:01:03.2]} 18... Nxe5 {[%clk 0:01:34.9]} 19. Nxa8 {[%clk 0:00:44.7]}
19... Nc6 {[%clk 0:01:29.3]} 20. Rae1 {[%clk 0:00:34.1]} 20... Rxa8 {[%clk
0:01:22.8]} 21. Qd2 {[%clk 0:00:25.3]} 21... Qf7 {[%clk 0:01:22.8]} 22. Nf4
{[%clk 0:00:23]} 22... b5 {[%clk 0:01:17.7]} 23. h4 {[%clk 0:00:21]} 23... Rd8
{[%clk 0:01:08.4]} 24. Qe3 {[%clk 0:00:21.1]} 24... Rd6 {[%clk 0:01:08.3]} 25.
h5 {[%clk 0:00:21.5]} 25... g5 {[%clk 0:01:07.5]} 26. Nh3 {[%clk 0:00:21.4]}
26... h6 {[%clk 0:01:08]} 27. Nf2 {[%clk 0:00:21.6]} 27... Qxh5 {[%clk
0:00:57.8]} 28. Ng4 {[%clk 0:00:21.1]} 28... Qg6 {[%clk 0:00:57.8]} 29. f4
{[%clk 0:00:19.3]} 29... Nd7 {[%clk 0:00:47.3]} 30. fxg5 {[%clk 0:00:19]} 30...
Qxg5 {[%clk 0:00:48.2]} 31. Nxh6+ {[%clk 0:00:19.1]} 1-0

[Event "*** Titled Tuesday Blitz"]
[Site "Chess.com"]
[Date "2020.12.01"]
[Round "1"]
[White "ybruned"]
[Black "Ginger_GM"]
[Result "0-1"]
[WhiteElo "2298"]
[BlackElo "2606"]
[TimeControl "180+1"]
[EndTime "10:06:20 PST"]
[Termination "Ginger_GM won by resignation"]

1. Nf3 {[%clk 0:02:59]} 1... f5 {[%clk 0:02:53.8]} 2. e3 {[%clk 0:02:57.1]} 2...
Nf6 {[%clk 0:02:51.4]} 3. b3 {[%clk 0:02:58]} 3... d6 {[%clk 0:02:46.3]} 4. Bb2
{[%clk 0:02:58.9]} 4... e5 {[%clk 0:02:44.5]} 5. d4 {[%clk 0:02:55.7]} 5... e4
{[%clk 0:02:44]} 6. Nfd2 {[%clk 0:02:55.9]} 6... d5 {[%clk 0:02:43]} 7. Be2
{[%clk 0:02:56.3]} 7... Bd6 {[%clk 0:02:42.4]} 8. c4 {[%clk 0:02:56.6]} 8... c6
{[%clk 0:02:42.1]} 9. Nc3 {[%clk 0:02:55.8]} 9... a6 {[%clk 0:02:41.3]} 10. O-O
{[%clk 0:02:54.7]} 10... O-O {[%clk 0:02:40.8]} 11. f4 {[%clk 0:02:53.1]} 11...
b5 {[%clk 0:02:36.8]} 12. c5 {[%clk 0:02:51.2]} 12... Bc7 {[%clk 0:02:36.5]} 13.
a3 {[%clk 0:02:48.9]} 13... a5 {[%clk 0:02:36.2]} 14. b4 {[%clk 0:02:43.8]}
14... a4 {[%clk 0:02:35.6]} 15. g3 {[%clk 0:02:35.4]} 15... Kh8 {[%clk
0:02:35.3]} 16. Kf2 {[%clk 0:02:35.3]} 16... Rg8 {[%clk 0:02:34]} 17. Rh1 {[%clk
0:02:35.7]} 17... g5 {[%clk 0:02:33.5]} 18. Nf1 {[%clk 0:02:16.6]} 18... Be6
{[%clk 0:02:30.6]} 19. h4 {[%clk 0:02:11.3]} 19... gxf4 {[%clk 0:02:29.8]} 20.
exf4 {[%clk 0:02:08.6]} 20... Nbd7 {[%clk 0:02:22.4]} 21. Qd2 {[%clk 0:02:09.1]}
21... Qe7 {[%clk 0:02:20.7]} 22. Nd1 {[%clk 0:02:09.5]} 22... Bf7 {[%clk
0:02:17.4]} 23. Nde3 {[%clk 0:02:09.4]} 23... Qe6 {[%clk 0:02:17.3]} 24. Qd1
{[%clk 0:02:08.6]} 24... Rg7 {[%clk 0:02:16.5]} 25. Ke1 {[%clk 0:02:08.7]} 25...
Rag8 {[%clk 0:02:15.7]} 26. Kd2 {[%clk 0:02:06.9]} 26... Rxg3 {[%clk 0:02:15.2]}
27. Nxg3 {[%clk 0:02:06.8]} 27... Rxg3 {[%clk 0:02:16.1]} 28. Qf1 {[%clk
0:01:56.5]} 28... Bh5 {[%clk 0:02:13.3]} 29. Rg1 {[%clk 0:01:51.5]} 29... Rxg1
{[%clk 0:02:11.7]} 30. Qxg1 {[%clk 0:01:50.8]} 30... Bxf4 {[%clk 0:02:12.6]} 31.
Rf1 {[%clk 0:01:48]} 31... Bh6 {[%clk 0:01:53.5]} 32. Qh2 {[%clk 0:01:10.3]}
32... Bxe2 {[%clk 0:01:46.4]} 33. Kxe2 {[%clk 0:01:10]} 33... Bxe3 {[%clk
0:01:42.7]} 34. Qd6 {[%clk 0:01:08.6]} 34... Qxd6 {[%clk 0:01:40.7]} 35. cxd6
{[%clk 0:01:08.8]} 35... f4 {[%clk 0:01:39]} 36. Bc1 {[%clk 0:01:08.2]} 36...
Bxc1 {[%clk 0:01:38.3]} 37. Rxc1 {[%clk 0:01:06]} 37... f3+ {[%clk 0:01:35.6]}
38. Ke3 {[%clk 0:01:05.8]} 38... Nb8 {[%clk 0:01:32.3]} 39. Rg1 {[%clk
0:01:03.4]} 39... h5 {[%clk 0:01:30.2]} 40. Rg5 {[%clk 0:01:02.5]} 40... Nbd7
{[%clk 0:01:27.1]} 41. Kf2 {[%clk 0:00:54.8]} 41... Kh7 {[%clk 0:01:26.6]} 42.
Kg3 {[%clk 0:00:51]} 42... Kh6 {[%clk 0:01:21.7]} 43. Re5 {[%clk 0:00:46.6]}
43... Kg6 {[%clk 0:01:17]} 44. Re6 {[%clk 0:00:35.3]} 44... Kf5 {[%clk
0:01:14.4]} 45. Re5+ {[%clk 0:00:35.3]} 45... Nxe5 {[%clk 0:01:12.8]} 46. dxe5
{[%clk 0:00:35.4]} 0-1

[Event "*** Titled Tuesday Blitz"]
[Site "Chess.com"]
[Date "2020.12.01"]
[Round "1"]
[White "kidagent"]
[Black "alexrustemov"]
[Result "0-1"]
[WhiteElo "2320"]
[BlackElo "2645"]
[TimeControl "180+1"]
[EndTime "10:06:21 PST"]
[Termination "alexrustemov won by checkmate"]

1. e4 {[%clk 0:03:00.9]} 1... e6 {[%clk 0:02:59.5]} 2. d4 {[%clk 0:03:00.5]}
2... d5 {[%clk 0:03:00.2]} 3. Nd2 {[%clk 0:03:01]} 3... c5 {[%clk 0:02:59.7]} 4.
exd5 {[%clk 0:03:00.3]} 4... Qxd5 {[%clk 0:03:00.6]} 5. dxc5 {[%clk 0:02:57.8]}
5... Bxc5 {[%clk 0:02:59.2]} 6. Ngf3 {[%clk 0:02:55.1]} 6... Nf6 {[%clk
0:02:58.8]} 7. Bc4 {[%clk 0:02:49.7]} 7... Qc6 {[%clk 0:02:58.8]} 8. O-O {[%clk
0:02:44.5]} 8... O-O {[%clk 0:02:57.7]} 9. Qe2 {[%clk 0:02:39.9]} 9... b6 {[%clk
0:02:51.9]} 10. Ne5 {[%clk 0:02:27.4]} 10... Qc7 {[%clk 0:02:48.9]} 11. Ndf3
{[%clk 0:02:25.8]} 11... Nbd7 {[%clk 0:02:43.2]} 12. Nxf7 {[%clk 0:02:02.2]}
12... Rxf7 {[%clk 0:02:38.5]} 13. Bxe6 {[%clk 0:01:53.2]} 13... Nf8 {[%clk
0:02:38.5]} 14. Bxf7+ {[%clk 0:01:49.2]} 14... Qxf7 {[%clk 0:02:39.4]} 15. Be3
{[%clk 0:01:45.7]} 15... Bd6 {[%clk 0:02:24.8]} 16. Ng5 {[%clk 0:01:42.3]} 16...
Qc7 {[%clk 0:02:18.2]} 17. h3 {[%clk 0:01:40.9]} 17... Bf5 {[%clk 0:02:10.8]}
18. c3 {[%clk 0:01:36.8]} 18... Re8 {[%clk 0:02:10.3]} 19. Rad1 {[%clk
0:01:31.1]} 19... h6 {[%clk 0:02:08.6]} 20. Nf3 {[%clk 0:01:30.4]} 20... Bf4
{[%clk 0:02:00.7]} 21. Nd4 {[%clk 0:01:20.3]} 21... Bxe3 {[%clk 0:01:56.6]} 22.
Nxf5 {[%clk 0:01:16.4]} 22... Bc5 {[%clk 0:01:47.8]} 23. Qf3 {[%clk 0:01:13.9]}
23... Qe5 {[%clk 0:01:43.1]} 24. Nd4 {[%clk 0:01:09.1]} 24... Ng6 {[%clk
0:01:39.8]} 25. Qd3 {[%clk 0:00:53.7]} 25... Nf4 {[%clk 0:01:37.9]} 26. Qc4+
{[%clk 0:00:53.3]} 26... Kh8 {[%clk 0:01:36.6]} 27. Nf3 {[%clk 0:00:52]} 27...
Qf5 {[%clk 0:01:24.1]} 28. Nh4 {[%clk 0:00:30.4]} 28... Nxh3+ {[%clk 0:01:17.4]}
29. gxh3 {[%clk 0:00:28.3]} 29... Qxh3 {[%clk 0:01:17.9]} 30. Rd3 {[%clk
0:00:19.2]} 30... Qc8 {[%clk 0:01:05.2]} 31. Ng6+ {[%clk 0:00:19.1]} 31... Kh7
{[%clk 0:01:05.1]} 32. Rg3 {[%clk 0:00:19.4]} 32... Re4 {[%clk 0:01:02.7]} 33.
Qf7 {[%clk 0:00:19]} 33... Rg4 {[%clk 0:00:58.8]} 34. Ne5 {[%clk 0:00:14]} 34...
Rxg3+ {[%clk 0:00:57.5]} 35. Kh2 {[%clk 0:00:14.5]} 35... Qh3# {[%clk
0:00:57.4]} 0-1

[Event "*** Titled Tuesday Blitz"]
[Site "Chess.com"]
[Date "2020.12.01"]
[Round "1"]
[White "Son_of_Sultan"]
[Black "ChessteacherPalmS"]
[Result "1-0"]
[WhiteElo "2631"]
[BlackElo "2309"]
[TimeControl "180+1"]
[EndTime "10:06:23 PST"]
[Termination "Son_of_Sultan won by resignation"]

1. d4 {[%clk 0:03:00.2]} 1... Nf6 {[%clk 0:02:58]} 2. Bg5 {[%clk 0:02:58.7]}
2... Ne4 {[%clk 0:02:56.2]} 3. h4 {[%clk 0:02:55.4]} 3... c5 {[%clk 0:02:54.6]}
4. d5 {[%clk 0:02:54.8]} 4... Qa5+ {[%clk 0:02:52.6]} 5. Nd2 {[%clk 0:02:52.1]}
5... d6 {[%clk 0:02:46.2]} 6. Nf3 {[%clk 0:02:38.2]} 6... Bg4 {[%clk 0:02:42.6]}
7. c3 {[%clk 0:02:35.3]} 7... Nxd2 {[%clk 0:02:38.1]} 8. Nxd2 {[%clk 0:02:31.7]}
8... Nd7 {[%clk 0:02:32.5]} 9. f3 {[%clk 0:02:31]} 9... h6 {[%clk 0:02:30.3]}
10. Bf4 {[%clk 0:02:27.2]} 10... Bf5 {[%clk 0:02:30]} 11. e4 {[%clk 0:02:25.7]}
11... Bg6 {[%clk 0:02:28.1]} 12. Qb3 {[%clk 0:02:23]} 12... Qc7 {[%clk
0:02:26.8]} 13. a4 {[%clk 0:02:12.2]} 13... f5 {[%clk 0:02:05.1]} 14. Bd3 {[%clk
0:02:05.5]} 14... fxe4 {[%clk 0:02:04.7]} 15. Nxe4 {[%clk 0:02:03]} 15... Bf7
{[%clk 0:02:03.7]} 16. O-O {[%clk 0:01:55.5]} 16... Nf6 {[%clk 0:02:00.2]} 17.
Bb5+ {[%clk 0:01:53.7]} 17... Kd8 {[%clk 0:01:58.8]} 18. Bc4 {[%clk 0:01:45.6]}
18... a6 {[%clk 0:01:50]} 19. a5 {[%clk 0:01:44.7]} 19... Rb8 {[%clk 0:01:48.3]}
20. Qd1 {[%clk 0:01:42.2]} 20... g6 {[%clk 0:01:45.7]} 21. Nxf6 {[%clk 0:01:40]}
21... exf6 {[%clk 0:01:45]} 22. Qd3 {[%clk 0:01:34.9]} 22... g5 {[%clk
0:01:41.2]} 23. Bg3 {[%clk 0:01:32.4]} 23... Qd7 {[%clk 0:01:32.9]} 24. b4
{[%clk 0:01:30.5]} 24... cxb4 {[%clk 0:01:31.2]} 25. cxb4 {[%clk 0:01:30.5]}
25... f5 {[%clk 0:01:27.9]} 26. Bf2 {[%clk 0:01:26.7]} 26... Bg7 {[%clk
0:01:27.3]} 27. Rae1 {[%clk 0:01:23.7]} 27... Be5 {[%clk 0:01:17]} 28. Bb6+
{[%clk 0:01:21.1]} 28... Ke7 {[%clk 0:01:17]} 29. f4 {[%clk 0:01:10.5]} 29...
gxf4 {[%clk 0:01:16.1]} 30. Rxf4 {[%clk 0:01:11]} 30... Kf6 {[%clk 0:01:12.7]}
31. Bd4 {[%clk 0:01:09.2]} 31... Bg6 {[%clk 0:01:11.9]} 32. Ref1 {[%clk
0:01:08.2]} 32... Rbe8 {[%clk 0:01:10.2]} 33. h5 {[%clk 0:01:02.4]} 33... Bh7
{[%clk 0:01:09.7]} 34. Qh3 {[%clk 0:00:59]} 34... Rhg8 {[%clk 0:01:07.4]} 35.
Bd3 {[%clk 0:00:55.6]} 35... Rg5 {[%clk 0:01:07]} 36. Qh4 {[%clk 0:00:50.7]}
36... Rg8 {[%clk 0:01:05.1]} 37. Kh1 {[%clk 0:00:39.3]} 37... Kf7 {[%clk
0:01:01.9]} 38. Bxe5 {[%clk 0:00:35]} 38... dxe5 {[%clk 0:01:00.8]} 39. R4f2
{[%clk 0:00:35.9]} 39... f4 {[%clk 0:00:58.5]} 40. Bxh7 {[%clk 0:00:34.9]} 40...
R8g7 {[%clk 0:00:54]} 41. Bg6+ {[%clk 0:00:34.9]} 41... Kg8 {[%clk 0:00:53.9]}
42. Qh3 {[%clk 0:00:34.3]} 42... Qxd5 {[%clk 0:00:53.2]} 43. Qc8+ {[%clk
0:00:34.1]} 1-0

[Event "*** Titled Tuesday Blitz"]
[Site "Chess.com"]
[Date "2020.12.01"]
[Round "1"]
[White "ARMQUEEN"]
[Black "Vojtap"]
[Result "1-0"]
[WhiteElo "2492"]
[BlackElo "2117"]
[TimeControl "180+1"]
[EndTime "10:06:23 PST"]
[Termination "ARMQUEEN won on time"]

1. e4 {[%clk 0:02:57.4]} 1... c5 {[%clk 0:02:59.6]} 2. Nc3 {[%clk 0:02:56.9]}
2... Nc6 {[%clk 0:02:58.5]} 3. Bb5 {[%clk 0:02:56.6]} 3... g6 {[%clk 0:02:57.9]}
4. Bxc6 {[%clk 0:02:56.7]} 4... dxc6 {[%clk 0:02:57.7]} 5. d3 {[%clk 0:02:57.1]}
5... Bg7 {[%clk 0:02:57.8]} 6. Nge2 {[%clk 0:02:57]} 6... e5 {[%clk 0:02:47.6]}
7. Be3 {[%clk 0:02:56.2]} 7... b6 {[%clk 0:02:46.1]} 8. Qd2 {[%clk 0:02:56.4]}
8... h6 {[%clk 0:02:35.5]} 9. O-O {[%clk 0:02:55.5]} 9... Ne7 {[%clk 0:02:35.2]}
10. f4 {[%clk 0:02:54.7]} 10... exf4 {[%clk 0:02:32.5]} 11. Bxf4 {[%clk
0:02:53.7]} 11... Bg4 {[%clk 0:02:27.9]} 12. Rae1 {[%clk 0:02:49.2]} 12... Qd7
{[%clk 0:02:27.1]} 13. e5 {[%clk 0:02:41.9]} 13... g5 {[%clk 0:02:23.6]} 14. Bg3
{[%clk 0:02:41.5]} 14... O-O {[%clk 0:02:23.1]} 15. Ne4 {[%clk 0:02:41.1]} 15...
Nf5 {[%clk 0:02:04.2]} 16. Nxg5 {[%clk 0:02:30.9]} 16... hxg5 {[%clk 0:01:55.5]}
17. Qxg5 {[%clk 0:02:29.4]} 17... Nh6 {[%clk 0:01:26]} 18. Nf4 {[%clk
0:02:24.8]} 18... Qf5 {[%clk 0:01:23.4]} 19. Qh4 {[%clk 0:02:16.4]} 19... Bxe5
{[%clk 0:01:16]} 20. Qxh6 {[%clk 0:02:02.9]} 20... Bxb2 {[%clk 0:01:08.4]} 21.
h3 {[%clk 0:01:51.4]} 21... Bxh3 {[%clk 0:00:34.2]} 22. Nxh3 {[%clk 0:01:49.1]}
22... Bd4+ {[%clk 0:00:31.9]} 23. Kh1 {[%clk 0:01:46.9]} 23... Qg6 {[%clk
0:00:27.2]} 24. Qh4 {[%clk 0:01:45]} 24... Rae8 {[%clk 0:00:24]} 25. Nf4 {[%clk
0:01:43.8]} 25... Qh7 {[%clk 0:00:20.8]} 26. Nh5 {[%clk 0:01:38.2]} 26... Re6
{[%clk 0:00:13.3]} 27. Rxe6 {[%clk 0:01:36.7]} 27... fxe6 {[%clk 0:00:14.2]} 28.
Rxf8+ {[%clk 0:01:36.8]} 28... Kxf8 {[%clk 0:00:14.6]} 29. Bd6+ {[%clk
0:01:33.2]} 29... Kg8 {[%clk 0:00:10.6]} 30. Kh2 {[%clk 0:01:32.8]} 30... Kf7
{[%clk 0:00:06.5]} 31. Qe7+ {[%clk 0:01:30.9]} 31... Kg6 {[%clk 0:00:06.5]} 32.
Qxh7+ {[%clk 0:01:28.6]} 32... Kxh7 {[%clk 0:00:06.2]} 33. Nf4 {[%clk
0:01:29.2]} 33... e5 {[%clk 0:00:05.1]} 34. Ne6 {[%clk 0:01:29.1]} 34... Kg6
{[%clk 0:00:04.9]} 35. Bb8 {[%clk 0:01:28.4]} 35... a5 {[%clk 0:00:04.1]} 36.
Ba7 {[%clk 0:01:28]} 36... b5 {[%clk 0:00:02.8]} 37. Nxd4 {[%clk 0:01:27.5]}
37... cxd4 {[%clk 0:00:02.4]} 38. Kg3 {[%clk 0:01:26.7]} 38... Kf5 {[%clk
0:00:02.7]} 39. Kf3 {[%clk 0:01:26.9]} 39... a4 {[%clk 0:00:01.6]} 40. Bc5
{[%clk 0:01:26.2]} 1-0

[Event "*** Titled Tuesday Blitz"]
[Site "Chess.com"]
[Date "2020.12.01"]
[Round "1"]
[White "yourstrulyme"]
[Black "ChessWarrior3"]
[Result "1-0"]
[WhiteElo "2489"]
[BlackElo "2105"]
[TimeControl "180+1"]
[EndTime "10:06:25 PST"]
[Termination "yourstrulyme won by checkmate"]

1. e4 {[%clk 0:03:00.7]} 1... c5 {[%clk 0:02:57.9]} 2. Nf3 {[%clk 0:02:58.9]}
2... d6 {[%clk 0:02:57.2]} 3. d4 {[%clk 0:02:56.8]} 3... cxd4 {[%clk 0:02:58.1]}
4. Nxd4 {[%clk 0:02:57.4]} 4... Nf6 {[%clk 0:02:57]} 5. Nc3 {[%clk 0:02:52.7]}
5... a6 {[%clk 0:02:55.9]} 6. h4 {[%clk 0:02:52.3]} 6... e5 {[%clk 0:02:54.2]}
7. Nb3 {[%clk 0:02:43.7]} 7... Be6 {[%clk 0:02:50.6]} 8. f4 {[%clk 0:02:41.6]}
8... exf4 {[%clk 0:02:42.4]} 9. Bxf4 {[%clk 0:02:42.5]} 9... Nc6 {[%clk
0:02:41.8]} 10. Qd2 {[%clk 0:02:39.8]} 10... Ne5 {[%clk 0:02:39.5]} 11. Nd4
{[%clk 0:02:32.5]} 11... Be7 {[%clk 0:02:33.3]} 12. O-O-O {[%clk 0:02:30.2]}
12... O-O {[%clk 0:02:31.4]} 13. Nxe6 {[%clk 0:02:26.5]} 13... fxe6 {[%clk
0:02:32.3]} 14. g3 {[%clk 0:02:24.3]} 14... Qc7 {[%clk 0:02:28.2]} 15. Bh3
{[%clk 0:02:22.7]} 15... Neg4 {[%clk 0:02:18.9]} 16. Bxd6 {[%clk 0:01:59.1]}
16... Bxd6 {[%clk 0:02:14.8]} 17. Qxd6 {[%clk 0:02:00]} 17... Qxd6 {[%clk
0:02:06.3]} 18. Rxd6 {[%clk 0:02:00.9]} 18... Rfe8 {[%clk 0:02:05.5]} 19. Re1
{[%clk 0:01:29.3]} 19... h5 {[%clk 0:01:58.4]} 20. e5 {[%clk 0:01:27.7]} 20...
Nd5 {[%clk 0:01:44.9]} 21. Nxd5 {[%clk 0:01:24.9]} 21... exd5 {[%clk 0:01:45.8]}
22. Bxg4 {[%clk 0:01:19]} 22... hxg4 {[%clk 0:01:40.1]} 23. Rxd5 {[%clk
0:01:19.2]} 23... Rad8 {[%clk 0:01:39.4]} 24. Rxd8 {[%clk 0:01:09.3]} 24... Rxd8
{[%clk 0:01:40.3]} 25. Re4 {[%clk 0:01:08.9]} 25... Re8 {[%clk 0:01:40]} 26. Kd2
{[%clk 0:01:07.7]} 26... Kh7 {[%clk 0:01:28.1]} 27. Ke3 {[%clk 0:01:03.8]} 27...
Kh6 {[%clk 0:01:20.4]} 28. e6 {[%clk 0:01:01.7]} 28... g5 {[%clk 0:01:13]} 29.
hxg5+ {[%clk 0:00:52.2]} 29... Kxg5 {[%clk 0:01:13.9]} 30. e7 {[%clk 0:00:53]}
30... Kf6 {[%clk 0:01:09.4]} 31. Kf4 {[%clk 0:00:52.8]} 31... Kf7 {[%clk
0:01:04]} 32. Kf5 {[%clk 0:00:49.9]} 32... b5 {[%clk 0:01:00.1]} 33. c3 {[%clk
0:00:48.6]} 33... a5 {[%clk 0:00:59.5]} 34. a3 {[%clk 0:00:47.6]} 34... a4
{[%clk 0:00:59.2]} 35. Re3 {[%clk 0:00:45.9]} 35... Rc8 {[%clk 0:00:52.2]} 36.
e8=Q+ {[%clk 0:00:45]} 36... Rxe8 {[%clk 0:00:52.3]} 37. Rxe8 {[%clk 0:00:45.9]}
37... Kxe8 {[%clk 0:00:53.2]} 38. Kxg4 {[%clk 0:00:46.4]} 38... Kd7 {[%clk
0:00:54.1]} 39. Kf5 {[%clk 0:00:46.5]} 39... Kd6 {[%clk 0:00:55]} 40. g4 {[%clk
0:00:46.4]} 40... Kc5 {[%clk 0:00:55.9]} 41. g5 {[%clk 0:00:45]} 41... Kc4
{[%clk 0:00:56.8]} 42. g6 {[%clk 0:00:44.6]} 42... Kb3 {[%clk 0:00:57.7]} 43. g7
{[%clk 0:00:44.3]} 43... Kxb2 {[%clk 0:00:58.6]} 44. g8=Q {[%clk 0:00:44.6]}
44... Kxc3 {[%clk 0:00:59.5]} 45. Qf8 {[%clk 0:00:44]} 45... b4 {[%clk
0:01:00.4]} 46. Qxb4+ {[%clk 0:00:44.6]} 46... Kc2 {[%clk 0:00:59.8]} 47. Ke4
{[%clk 0:00:44.3]} 47... Kc1 {[%clk 0:01:00.7]} 48. Kd3 {[%clk 0:00:43.9]} 48...
Kd1 {[%clk 0:01:01.6]} 49. Qb1# {[%clk 0:00:42.9]} 1-0